{"text_format":"1","workbook":"xlsx","n_sheets":1,"sheets":["Квитанция "],"not_rendered":{"charts":0,"images":1,"macros":0,"external_links":5,"defined_names":24,"comments":0,"pivot_tables":0},"unopened":[],"bounds":{"document_bytes":16777216,"sheet_cells":100000,"rows_first":2000,"rows_last":500,"rows_between":2000,"halvings":0,"cell_chars":16384,"cell_head_chars":4096},"cells_cut":0,"cells_raw":0,"read":"whole","date_system":"1900"}

{"sheet":"Квитанция ","index":0,"n_rows":66,"n_cols":31,"rows_kept":66,"cut":false,"hidden":false,"merged":[[0,0,0,11],[6,1,6,7],[6,9,6,10],[6,15,6,17],[7,1,7,11],[8,1,8,6],[8,7,8,11],[8,13,8,14],[1,1,1,11],[2,1,2,11],[3,1,3,11],[4,1,4,3],[4,6,4,11],[5,1,5,11],[9,1,9,7],[9,8,9,9],[9,10,9,11],[9,13,9,14],[10,1,10,11],[11,1,11,2],[11,13,11,14],[15,1,15,11],[16,1,16,11],[17,1,17,11],[12,1,12,2],[12,3,12,10],[12,13,12,14],[13,1,13,11],[14,1,14,11],[18,1,18,11],[19,1,19,11],[19,13,21,17],[20,1,20,3],[20,6,20,11],[21,1,21,11],[30,1,30,11],[22,1,22,7],[22,9,22,10],[23,1,23,11],[24,1,24,6],[24,7,24,11],[25,1,25,7],[25,8,25,9],[25,10,25,11],[26,1,26,11],[27,1,27,2],[28,1,28,2],[28,3,28,10],[29,1,29,11],[40,1,40,11],[31,1,31,11],[32,1,32,11],[33,1,33,11],[34,1,34,11],[35,1,35,11],[36,1,36,11],[37,1,37,3],[37,6,37,11],[38,1,38,11],[39,1,39,7],[39,9,39,10],[48,1,48,11],[41,1,41,6],[41,7,41,11],[42,1,42,7],[42,8,42,9],[42,10,42,11],[43,1,43,11],[44,1,44,2],[45,1,45,2],[45,3,45,11],[46,1,46,11],[47,1,47,11],[54,1,54,11],[55,1,55,7],[55,9,55,10],[56,1,56,11],[57,1,57,6],[57,7,57,11],[49,1,49,11],[50,1,50,11],[51,1,51,11],[52,1,52,11],[53,1,53,3],[53,6,53,11],[62,1,62,11],[63,1,63,11],[64,1,64,11],[65,1,65,11],[58,1,58,7],[58,8,58,9],[58,10,58,11],[59,1,59,11],[60,1,60,2],[61,1,61,2],[61,3,61,11]]}
["ИНСТРУКЦИЯ:  Для заполнения квитанции заполните поля в правой части документа - все, что ФИОЛЕТОВЫМ ЦВЕТОМ на сером фоне (ФИО, адрес, размер месячной абонентской платы и количество месяцев за которые хотите произвести расчет) и нажмите \"ПЕЧАТАТЬ\". \n(Эти данные проставятся автоматически во всех строках квитанции.)\nОплатить по этой квитанции можно в любом отделении Сбербанка по Свердловской области. А также посредством перевода через Сбербанк-онлайн или другие платежные системы по указанным реквизитам. Если для оплаты потребуется № вашего лицевого счета, то используйте для этого \n3 последние цифры вашего договора (например \"123\" для договора 123С)"]
[null,"                                                                                                                                                                           Форма № ПД-4"]
["Извещение","ИП \"Иноземцев А.А.\"   тел.: (343)256-42-06\n620085, Свердловская обл, г. Екатеринбург, ул. Агрономическая дом 47, кв. 10;"]
["Оплата в месяц:"," (наименование получателя платежа) "]
[{"$f":"CONCATENATE(\"_\",P13,\"_\",\" руб.\")","v":"_500_ руб."},"666401811851 / 666401001",null,null,null,null,"              40802810016540003649"]
[null,"         (ИНН / КПП получателя платежа)                                                                                      (номер счета получателя платежа)"]
[null,"Уральский банк Сбербанка России (ПАО) г. ЕКАТЕРИНБУРГ",null,null,null,null,null,null,null," БИК:     046577674",null,null,null,"Укажите:",null,"все, что Фиолетовым цветом!!!"]
[null,"                                (наименование банка получателя платежа)"]
[null,"Номер кор./сч. банка получателя платежа",null,null,null,null,null,"30101810500000000674",null,null,null,null,null,"ФИО",null,"Город","№ Договора"]
[null,"  За Техническое обслуживание",null,null,null,null,null,null,null,null,null,null,null,"Иванов Иван Иванович",null,"г. Сысерть","***"]
[null,"                                                 (наименование платежа)                                                                                                                    "]
[null,"Ф.И.О. плательщика:",null,{"$f":"N10","v":"Иванов Иван Иванович"},null,null,null,null,null,"Лиц. Сч.:",{"$f":"Q10","v":"***"},null,null,"Улица",null,"Аб.Плата в месяц","Кол-во мес",null,null,null,null,null,null,null,null,null,null,null,null,"Округление копеек"]
[null,"Адрес плательщика:",null,{"$f":"P10&\",   \"&N13","v":"г. Сысерть,   ул. Орджоникидзе 88 - 99"},null,null,null,null,null,null,null,null,null,"ул. Орджоникидзе 88 - 99",null,500,12,null,null,null,null,null,null,null,null,null,null,null,null,{"$f":"P15*100","v":600000},{"$f":"ROUND(P15,0)*100","v":600000}]
[{"$f":"\"итого: за \"&Q13&\" месяцев\"","v":"итого: за 12 месяцев"},{"$f":"CONCATENATE(\"Сумма платежа:     _ \",AE19,\" _\",AE20,\"                       Сумма платы за услуги:  ________  руб.  ___ коп\")","v":"Сумма платежа:     _ 6000_ руб. _00_ коп.                       Сумма платы за услуги:  ________  руб.  ___ коп"}]
["Кассир","  Итого __________ руб. ______ коп.                              ",null,null,null,null,null,null,null,null,null,null,null,null,"Итого:",{"$f":"Q13*P13","v":6000},null,null,null,null,null,null,null,null,null,null,null,null,{"$f":"AD13-AE13","v":0},{"$f":"MID(P15,SEARCH(\".\",P15)+1,2)","v":{"$error":"#VALUE!"}},{"$f":"AD15*100","v":{"$error":"#VALUE!"}}]
["оплата до _______________","С условиями приема указанной в платежном документе суммы, в т.ч. с суммой взимаемой платы за услуги банка ознакомлен и согласен.          "]
[null,"                Подпись плательщика  ______________          “______”_____________________ 201__г."]
[null,"                                                                                                                                                                           Форма № ПД-4"]
["Извещение","ИП \"Иноземцев А.А.\"   тел.: (343)256-42-06\n620085, Свердловская обл, г. Екатеринбург, ул. Агрономическая дом 47, кв. 10;",null,null,null,null,null,null,null,null,null,null,null,null,null,null,null,null,null,null,null,null,null,null,null,null,null,null,null,"руб.",{"$f":"IF(P15<10000,MID(P15,1,4)&\"_ руб.\",MID(P15,1,5)&\"_ руб.\")","v":"6000_ руб."}]
[null," (наименование получателя платежа) ",null,null,null,null,null,null,null,null,null,null,null,"В графе \"Техническое обслуживание\" можно в выпадающем списке выбрать другин виды платежей: \" Охрана (мониторинг + ТО) \", или \"Пуско-наладочные работы\"",null,null,null,null,null,null,null,null,null,null,null,null,null,null,null,"коп.",{"$f":"IF(AC15=0,\"00_ коп.\",AD15&\"_ коп.\")","v":"00_ коп."}]
[null,"666401811851 / 666401001",null,null,null,null,"              40802810016540003649",null,null,null,null,null,null,null,null,null,null,null,null,null,null,null,null,null,null,null,null,null,null,"коп.",{"$f":"IF(AC16=0,\"00_ коп.\",AD16&\"_ коп.\")","v":"00_ коп."}]
[null,"         (ИНН / КПП получателя платежа)                                                                                      (номер счета получателя платежа)"]
[null,"Уральский банк Сбербанка России (ПАО) г. ЕКАТЕРИНБУРГ",null,null,null,null,null,null,null," БИК:     046577674"]
[null,"                                (наименование банка получателя платежа)"]
[null,"Номер кор./сч. банка получателя платежа",null,null,null,null,null,"30101810500000000674"]
[null,{"$f":"B10","v":"  За Техническое обслуживание"}]
[null,"                                                 (наименование платежа)                                                                                                                    "]
[null,"Ф.И.О. плательщика:",null,{"$f":"D12","v":"Иванов Иван Иванович"},null,null,null,null,null,{"$f":"$J$12","v":"Лиц. Сч.:"},{"$f":"$K$12","v":"***"}]
[null,"Адрес плательщика:",null,{"$f":"D13","v":"г. Сысерть,   ул. Орджоникидзе 88 - 99"}]
[null,{"$f":"B14","v":"Сумма платежа:     _ 6000_ руб. _00_ коп.                       Сумма платы за услуги:  ________  руб.  ___ коп"}]
["Кассир","  Итого __________ руб. ______ коп.                              "]
[null,"С условиями приема указанной в платежном документе суммы, в т.ч. с суммой взимаемой платы за услуги банка ознакомлен и согласен.          "]
[null,"                Подпись плательщика  ______________          “______”_____________________ 201__г."]
[]
[null,"                                                                                                                                                                           Форма № ПД-4"]
[null,"ИП \"Иноземцев А.А.\"   тел.: (343)256-42-06\n620085, Свердловская обл, г. Екатеринбург, ул. Агрономическая дом 47, кв. 10;"]
["Извещение"," (наименование получателя платежа) "]
["Оплата в месяц:","666401811851 / 666401001",null,null,null,null,"              40802810016540003649",null,null,null,null,null,null,null,null,null,null,null,null,null,null,null,null,null,null,null,null,"  ЗА ПУСКО-НАЛАДОЧНЫЕ РАБОТЫ"]
[{"$f":"A5","v":"_500_ руб."},"         (ИНН / КПП получателя платежа)                                                                                      (номер счета получателя платежа)",null,null,null,null,null,null,null,null,null,null,null,null,null,null,null,null,null,null,null,null,null,null,null,null,null,"За МОНТАЖ"]
[null,"Уральский банк Сбербанка России (ПАО) г. ЕКАТЕРИНБУРГ",null,null,null,null,null,null,null," БИК:     046577674",null,null,null,null,null,null,null,null,null,null,null,null,null,null,null,null,null,"За Охрану (ТО + Мониторинг)"]
[null,"                                (наименование банка получателя платежа)"]
[null,"Номер кор./сч. банка получателя платежа",null,null,null,null,null,"30101810500000000674",null,null,null,null,null,null,null,null,null,null,null,null,null,null,null,null,null,null,null,"  ЗА ПУСКО-НАЛАДОЧНЫЕ РАБОТЫ"]
[null,"  За Техническое обслуживание",null,null,null,null,null,null,null,null,null,null,null,null,null,null,null,null,null,null,null,null,null,null,null,null,null,"  За Техническое обслуживание"]
[null,"                                                 (наименование платежа)                                                                                                                    "]
[null,"Ф.И.О. плательщика:",null,{"$f":"D12","v":"Иванов Иван Иванович"},null,null,null,null,null,{"$f":"$J$12","v":"Лиц. Сч.:"},{"$f":"$K$12","v":"***"}]
[null,"Адрес плательщика:",null,{"$f":"D13","v":"г. Сысерть,   ул. Орджоникидзе 88 - 99"}]
[null,{"$f":"IF(B43=AB42,P63,IF(B43=AB43,P62,\"Ошибка\"))","v":"Сумма платежа:  ___________  руб.  ____ коп.                   Сумма платы за услуги:  ________  руб.  ___ коп"}]
["Кассир","  Итого __________ руб. ______ коп.                              "]
[null,"С условиями приема указанной в платежном документе суммы, в т.ч. с суммой взимаемой платы за услуги банка ознакомлен и согласен.          "]
[null,"                Подпись плательщика  ______________          “______”_____________________ 201__г."]
[null,"                                                                                                                                                                           Форма № ПД-4"]
["Извещение","ИП \"Иноземцев А.А.\"   тел.: (343)256-42-06\n620085, Свердловская обл, г. Екатеринбург, ул. Агрономическая дом 47, кв. 10;"]
[null," (наименование получателя платежа) "]
[null,"666401811851 / 666401001",null,null,null,null,"              40802810016540003649"]
[null,"         (ИНН / КПП получателя платежа)                                                                                      (номер счета получателя платежа)"]
[null,"Уральский банк Сбербанка России (ПАО) г. ЕКАТЕРИНБУРГ",null,null,null,null,null,null,null," БИК:     046577674"]
[null,"                                (наименование банка получателя платежа)"]
[null,"Номер кор./сч. банка получателя платежа",null,null,null,null,null,"30101810500000000674"]
[null,{"$f":"B43","v":"  За Техническое обслуживание"}]
[null,"                                                 (наименование платежа)                                                                                                                    "]
[null,"Ф.И.О. плательщика:",null,{"$f":"D12","v":"Иванов Иван Иванович"},null,null,null,null,null,{"$f":"$J$12","v":"Лиц. Сч.:"},{"$f":"$K$12","v":"***"}]
[null,"Адрес плательщика:",null,{"$f":"D13","v":"г. Сысерть,   ул. Орджоникидзе 88 - 99"},null,null,null,null,null,null,null,null,null,null,null,"Сумма платежа:  ___________  руб.  ____ коп.                   Сумма платы за услуги:  ________  руб.  ___ коп"]
[null,{"$f":"B47","v":"Сумма платежа:  ___________  руб.  ____ коп.                   Сумма платы за услуги:  ________  руб.  ___ коп"},null,null,null,null,null,null,null,null,null,null,null,null,null,"Сумма платежа:  _3 362__  руб.  _96_ коп.                       Сумма платы за услуги:  ________  руб.  ___ коп"]
["Кассир","  Итого __________ руб. ______ коп.                              "]
[null,"С условиями приема указанной в платежном документе суммы, в т.ч. с суммой взимаемой платы за услуги банка ознакомлен и согласен.          "]
[null,"                Подпись плательщика  ______________          “______”_____________________ 201__г."]